[Event "ROU-ch Men 2018"]
[Site "Olanesti"]
[Date "2018.05.20"]
[Round "7"]
[White "Ciobanu, Viorel-Adrian"]
[Black "Dobre, Claudiu-Cristian"]
[Result "0-1"]
[ECO "B00"]
[WhiteElo "2196"]
[BlackElo "2393"]
[Annotator "NA"]
[PlyCount "72"]
[EventDate "2018.??.??"]
[EventType "swiss"]
[EventCountry "ROU"]
[SourceTitle "playchess.com"]
[Source "ChessBase"]
[SourceQuality "1"]
[TimeControl "40/5400+30:1800+30"]

1. e4 {[%emt 0:00:00]} Nc6 {[%emt 0:01:33]} 2. Nf3 {[%emt 0:04:56]} d6 {[%emt 0:00:23]} 3. d4 {[%emt 0:03:52]} Nf6 {[%emt 0:00:24]} 4. Nc3 {[%emt 0:12:39]} Bg4 {[%emt 0:00:24]} 5. Be3 {[%emt 0:01:33]} e6 {[%emt 0:00:13]} 6. Bd3 {[%emt 0:02:01] B00: Queen's Fianchetto Defence, Nimzowitsch Defence} (6. Bb5 d5 7. exd5 exd5 8. h3 Bd7 9. Ne5 Be7 10. Qf3 O-O 11. O-O-O a6 12. Bd3 Be6 13. g4 Nb4 {0-1 (33) Rublevsky,S (2683)-Usmanov,V (2455) St Petersburg 2017}) 6... d5 {[%emt 0:01:12]} 7. e5 {[%emt 0:27:21]} Nd7 {[%emt 0:00:24]} 8. a3 $146 {[%emt 0:00:06]} ({Predecessor:} 8. h3 Bh5 9. Nb1 Nb4 10. Be2 Bg6 11. Na3 c5 12. c3 Nc6 13. Qa4 a6 14. dxc5 Bxc5 {0-1 (49) Besner,B (2188)-Wockenfuss,K (2317) Passau 1999}) 8... Be7 {[%emt 0:09:18]} 9. h3 {[%emt 0:02:15]} Bh5 {[%emt 0:01:13]} 10. g4 {[%emt 0:12:47]} Bg6 {[%emt 0:00:24]} 11. Bxg6 {[%emt 0:00:04]} hxg6 {[%emt 0:13:05]} 12. Qd3 {[%emt 0:00:10]} Nb6 {[%emt 0:02:09]} 13. Nd2 {[%emt 0:10:08]} Qd7 {[%emt 0:03:48]} 14. f4 {[%emt 0:01:29]} O-O-O {[%emt 0:07:34]} 15. Ne2 {[%emt 0:00:15]} a6 {[%emt 0:07:32]} 16. O-O-O {[%emt 0:03:26]} Na5 {[%emt 0:04:52]} 17. Kb1 {[%emt 0:00:10]} Nac4 {[%emt 0:01:38]} 18. Nxc4 {[%emt 0:01:13]} dxc4 {[%emt 0:01:51]} 19. Qe4 {[%emt 0:01:36]} Na4 {[%emt 0:02:38]} 20. Ka2 {[%emt 0:01:38]} Qb5 {[%emt 0:08:25]} 21. Bc1 {[%emt 0:00:07]} Kb8 {[%emt 0:06:49]} 22. h4 {[%emt 0:00:46]} Rd5 {[%emt 0:01:03]} 23. Rh3 {[%emt 0:03:14]} Rhd8 {[%emt 0:00:39]} 24. h5 {[%emt 0:03:22]} gxh5 {[%emt 0:01:12]} 25. gxh5 {[%emt 0:00:09]} Qd7 {[%emt 0:09:20]} 26. Rf3 {[%emt 0:01:30]} f5 {[%emt 0:01:18]} 27. Qe3 {[%emt 0:02:24]} c5 {[%emt 0:00:54]} 28. c3 {[%emt 0:02:29]} cxd4 {[%emt 0:07:20]} 29. cxd4 {[%emt 0:00:06]} (29. Nxd4 $11 {keeps the balance.} Bc5 30. Rg3) 29... Rb5 {[%emt 0:01:10]} 30. Nc3 {[%emt 0:02:37]} Nxc3+ {[%emt 0:02:03]} 31. bxc3 {[%emt 0:00:09]} Rb3 {[%emt 0:00:32]} 32. Bb2 {[%emt 0:00:49]} Bxa3 {[%emt 0:02:06]} 33. Bxa3 {[%emt 0:00:13]} Rxa3+ {[%emt 0:00:29]} 34. Kxa3 {[%emt 0:00:51]} Qb5 {[%emt 0:00:05]} 35. Ka2 {[%emt 0:00:21]} Qb3+ {[%emt 0:00:05]} 36. Ka1 {[%emt 0:00:04]} Rd5 {[%emt 0:00:09]} 0-1

[Event "ROU-ch Men 2018"]
[Site "Olanesti"]
[Date "2018.05.20"]
[Round "7"]
[White "Dumitru, Matei-Ioan"]
[Black "Stan, Andrei-Mihaita"]
[Result "1-0"]
[ECO "C11"]
[WhiteElo "2164"]
[BlackElo "1860"]
[Annotator "NA"]
[PlyCount "81"]
[EventDate "2018.??.??"]
[EventType "swiss"]
[EventCountry "ROU"]
[SourceTitle "playchess.com"]
[Source "ChessBase"]
[SourceQuality "1"]
[TimeControl "40/5400+30:1800+30"]

1. e4 {[%emt 0:00:00]} e6 {[%emt 0:00:40]} 2. d4 {[%emt 0:00:00]} d5 {[%emt 0:00:06]} 3. Nc3 {[%emt 0:00:00]} Nf6 {[%emt 0:00:21]} 4. e5 {[%emt 0:00:00]} Nfd7 {[%emt 0:00:08]} 5. Nf3 {[%emt 0:00:00]} c5 {[%emt 0:00:33]} 6. dxc5 {[%emt 0:00:00]} Bxc5 {[%emt 0:00:23]} 7. Bd3 {[%emt 0:00:02]} Nc6 {[%emt 0:01:09]} 8. Bf4 {[%emt 0:00:05]} f6 {[%emt 0:02:02]} 9. exf6 {[%emt 0:00:07]} Nxf6 {[%emt 0:00:11]} 10. O-O {[%emt 0:01:18]} O-O {[%emt 0:01:01]} 11. Qe2 {[%emt 0:05:21]} Bd7 {[%emt 0:15:05]} 12. Nb5 {[%emt 0:02:20]} Qe7 {[%emt 0:13:33]} 13. Rae1 {[%emt 0:06:12]} Nb4 {[%emt 0:06:59]} 14. Nc7 {[%emt 0:08:44]} Nxd3 {[%emt 0:00:32]} 15. cxd3 {[%emt 0:07:29]} Rac8 {[%emt 0:01:58]} 16. Nxe6 {[%emt 0:11:12]} Rfe8 {[%emt 0:04:01]} 17. Ned4 {[%emt 0:00:21]} Qf8 {[%emt 0:10:08]} 18. Qd1 {[%emt 0:03:02]} Bxd4 {[%emt 0:02:32]} 19. Nxd4 {[%emt 0:00:58]} Qb4 {[%emt 0:00:15]} 20. Be3 {[%emt 0:05:11]} Qxb2 {[%emt 0:02:11]} 21. Qf3 {[%emt 0:08:20]} Qc3 {[%emt 0:06:22]} 22. Nf5 {[%emt 0:01:51]} Bxf5 {[%emt 0:01:18]} 23. Qxf5 {[%emt 0:01:01]} d4 {[%emt 0:00:23]} 24. Rc1 {[%emt 0:00:15]} dxe3 {[%emt 0:08:20]} 25. Rxc3 {[%emt 0:00:26]} exf2+ {[%emt 0:00:05]} 26. Qxf2 {[%emt 0:02:33]} Rxc3 {[%emt 0:00:05]} 27. Rd1 {[%emt 0:00:43]} a6 {[%emt 0:01:01]} 28. Qb6 {[%emt 0:01:35]} Re2 {[%emt 0:01:57]} 29. a4 {[%emt 0:04:06]} Rcc2 {[%emt 0:04:23]} 30. Qxb7 {[%emt 0:00:10]} h6 {[%emt 0:03:38]} 31. Qf3 {[%emt 0:00:27]} h5 {[%emt 0:01:25]} 32. h3 {[%emt 0:01:46]} Kf7 {[%emt 0:01:48]} 33. Rb1 {[%emt 0:01:06]} Rb2 {[%emt 0:02:08]} 34. Rc1 {[%emt 0:00:32]} a5 {[%emt 0:00:53]} 35. d4 {[%emt 0:01:48]} Red2 {[%emt 0:02:13]} 36. Rc7+ {[%emt 0:00:23]} Kg8 {[%emt 0:00:58]} 37. Qg3 {[%emt 0:03:29]} Ne8 {[%emt 0:02:52]} 38. Rd7 {[%emt 0:01:07]} h4 {[%emt 0:00:25]} 39. Qg6 {[%emt 0:00:59]} Rd1+ {[%emt 0:00:41]} 40. Kh2 {[%emt 0:00:00]} Re2 {[%emt 0:00:12]} 41. Qf7+ {[%emt 0:00:38]} 1-0

[Event "ROU-ch Men 2018"]
[Site "Olanesti"]
[Date "2018.05.20"]
[Round "7"]
[White "Horvat, Dan-Sebastian"]
[Black "Iustin, Silviu"]
[Result "1/2-1/2"]
[ECO "C02"]
[WhiteElo "2152"]
[BlackElo "1962"]
[Annotator "NA"]
[PlyCount "24"]
[EventDate "2018.??.??"]
[EventType "swiss"]
[EventCountry "ROU"]
[SourceTitle "playchess.com"]
[Source "ChessBase"]
[SourceQuality "1"]
[TimeControl "40/5400+30:1800+30"]

1. e4 {[%emt 0:01:26]} e6 {[%emt 0:00:04]} 2. d4 {[%emt 0:00:50]} d5 {[%emt 0:00:01]} 3. e5 {[%emt 0:01:05]} c5 {[%emt 0:00:10]} 4. c3 {[%emt 0:00:10]} Nc6 {[%emt 0:00:03]} 5. Nf3 {[%emt 0:00:14]} Qb6 {[%emt 0:00:06]} 6. a3 {[%emt 0:00:17]} a5 {[%emt 0:04:10]} 7. a4 {[%emt 0:01:10]} Nh6 {[%emt 0:02:26]} 8. Bb5 {[%emt 0:02:56]} Bd7 {[%emt 0:01:40]} 9. O-O {[%emt 0:03:26]} cxd4 {[%emt 0:02:58]} 10. cxd4 {[%emt 0:00:37]} Nf5 {[%emt 0:01:39]} 11. Be3 {[%emt 0:01:27]} Be7 {[%emt 0:05:10]} 12. Nc3 {[%emt 0:02:54]} O-O-O {[%emt 0:08:59]} 1/2-1/2

[Event "ROU-ch Men 2018"]
[Site "Olanesti"]
[Date "2018.05.20"]
[Round "7"]
[White "Paraschiv, Paul-Alexandru"]
[Black "Cotruta, Alexandru-Mihai"]
[Result "0-1"]
[ECO "B20"]
[WhiteElo "2131"]
[BlackElo "1776"]
[Annotator "NA"]
[PlyCount "70"]
[EventDate "2018.??.??"]
[EventType "swiss"]
[EventCountry "ROU"]
[SourceTitle "playchess.com"]
[Source "ChessBase"]
[SourceQuality "1"]
[TimeControl "40/5400+30:1800+30"]

1. e4 {[%emt 0:00:00]} c5 {[%emt 0:00:07]} 2. b3 {[%emt 0:00:00]} e6 {[%emt 0:01:03]} 3. Nf3 {[%emt 0:00:02]} Nc6 {[%emt 0:04:51]} 4. Bb2 {[%emt 0:00:05]} d5 {[%emt 0:01:28]} 5. exd5 {[%emt 0:05:42]} exd5 {[%emt 0:01:32]} 6. Bb5 {[%emt 0:01:28]} Nf6 {[%emt 0:00:48]} 7. Qe2+ {[%emt 0:00:59]} Be7 {[%emt 0:05:13]} 8. Ne5 {[%emt 0:04:48]} Qc7 {[%emt 0:01:20]} 9. O-O {[%emt 0:10:09]} O-O {[%emt 0:01:00]} 10. Bxc6 {[%emt 0:00:04]} bxc6 {[%emt 0:00:13]} 11. d3 {[%emt 0:01:49]} Bd6 {[%emt 0:01:34]} 12. f4 {[%emt 0:03:27]} Re8 {[%emt 0:01:03]} 13. Qf2 {[%emt 0:00:38]} d4 {[%emt 0:01:47]} 14. Nc4 $15 {[%emt 0:03:00]} Ng4 {[%emt 0:02:01]} 15. Qh4 {[%emt 0:01:42]} Bxf4 {[%emt 0:01:24]} 16. g3 {[%emt 0:03:40]} Bh6 {[%emt 0:03:59]} 17. Nbd2 {[%emt 0:03:04]} Re2 {[%emt 0:02:10]} 18. Rae1 {[%emt 0:00:47]} g5 {[%emt 0:00:43]} 19. Qxh6 {[%emt 0:02:26]} Nxh6 {[%emt 0:00:53]} 20. Rxe2 {[%emt 0:00:01]} Bh3 {[%emt 0:05:13]} 21. Rfe1 {[%emt 0:00:53]} Ng4 {[%emt 0:00:58]} 22. Ne4 {[%emt 0:01:34]} Qd8 {[%emt 0:03:29]} 23. Nxc5 {[%emt 0:01:04]} Qd5 {[%emt 0:00:09]} 24. Ne4 {[%emt 0:01:17]} c5 {[%emt 0:00:46]} 25. c3 {[%emt 0:05:53]} h6 {[%emt 0:04:31]} 26. cxd4 {[%emt 0:00:38]} cxd4 {[%emt 0:00:09]} 27. Ned6 {[%emt 0:08:44]} f5 {[%emt 0:07:25]} 28. Ne8 {[%emt 0:04:58]} Rc8 {[%emt 0:03:50]} 29. a4 {[%emt 0:04:03]} f4 {[%emt 0:00:41]} 30. Rf2 {[%emt 0:05:13]} Kf8 {[%emt 0:02:10]} 31. Ba3+ {[%emt 0:01:40]} Kg8 {[%emt 0:00:44]} 32. Bd6 {[%emt 0:04:47]} Qf7 {[%emt 0:03:58]} 33. Nc7 {[%emt 0:08:51]} Nxf2 {[%emt 0:00:46]} 34. Re7 {[%emt 0:00:20]} Qh5 {[%emt 0:00:44]} 35. Nd5 {[%emt 0:00:37]} Qd1+ {[%emt 0:00:15]} 0-1

[Event "ROU-ch Men 2018"]
[Site "Olanesti"]
[Date "2018.05.20"]
[Round "7"]
[White "Sava, Bogdan"]
[Black "Morariu, Daniel"]
[Result "1-0"]
[ECO "A80"]
[WhiteElo "2099"]
[BlackElo "1656"]
[Annotator "NA"]
[PlyCount "67"]
[EventDate "2018.??.??"]
[EventType "swiss"]
[EventCountry "ROU"]
[SourceTitle "playchess.com"]
[Source "ChessBase"]
[SourceQuality "1"]
[TimeControl "40/5400+30:1800+30"]

1. d4 {[%emt 0:00:00]} f5 {[%emt 0:00:57]} 2. Bg5 {[%emt 0:00:47]} g6 {[%emt 0:03:25]} 3. c4 {[%emt 0:06:04]} Bg7 {[%emt 0:00:33]} 4. e3 {[%emt 0:00:36]} Nf6 {[%emt 0:02:33]} 5. Nc3 {[%emt 0:00:28]} d6 {[%emt 0:03:51]} 6. Nf3 {[%emt 0:01:22]} c6 {[%emt 0:01:51]} 7. Be2 {[%emt 0:00:36]} O-O {[%emt 0:01:29]} 8. O-O {[%emt 0:01:09]} Ne4 {[%emt 0:01:09]} 9. Nxe4 {[%emt 0:01:52]} fxe4 {[%emt 0:01:20]} 10. Nd2 {[%emt 0:00:09]} d5 {[%emt 0:07:24]} 11. Qb3 {[%emt 0:06:22]} Kh8 {[%emt 0:01:22]} 12. Rad1 {[%emt 0:02:42]} Rf5 {[%emt 0:09:08]} 13. Bh4 {[%emt 0:00:23]} g5 {[%emt 0:03:02]} 14. Bg3 {[%emt 0:01:19]} e6 {[%emt 0:03:49]} 15. f3 {[%emt 0:03:32]} exf3 {[%emt 0:02:54]} 16. Nxf3 {[%emt 0:00:46]} Nd7 {[%emt 0:14:36]} 17. Bd3 {[%emt 0:00:44]} Rf7 {[%emt 0:05:36]} 18. Qc2 {[%emt 0:05:12]} Qe7 {[%emt 0:05:57]} 19. h4 {[%emt 0:04:48]} e5 {[%emt 0:10:27]} 20. cxd5 {[%emt 0:01:26]} cxd5 {[%emt 0:02:00]} 21. Nxg5 {[%emt 0:08:11]} Rxf1+ {[%emt 0:01:25]} 22. Bxf1 {[%emt 0:03:03]} e4 {[%emt 0:00:58]} 23. Qc7 {[%emt 0:11:19]} Bh6 {[%emt 0:04:22]} 24. Bd6 {[%emt 0:04:28]} Qe8 {[%emt 0:02:16]} 25. Bb5 {[%emt 0:01:10]} a6 {[%emt 0:03:04]} 26. Ba4 {[%emt 0:02:13]} Bxg5 {[%emt 0:01:36]} 27. hxg5 {[%emt 0:02:04]} Qe6 {[%emt 0:02:32]} 28. Rf1 {[%emt 0:01:11]} Kg7 {[%emt 0:00:54]} 29. Bf8+ {[%emt 0:04:42]} Kg6 {[%emt 0:03:18]} 30. Bxd7 {[%emt 0:00:47]} Bxd7 {[%emt 0:01:05]} 31. Rf6+ {[%emt 0:00:45]} Qxf6 {[%emt 0:00:11]} 32. gxf6 {[%emt 0:00:03]} Rxf8 {[%emt 0:00:29]} 33. Qxd7 {[%emt 0:00:02]} Rxf6 {[%emt 0:00:19]} 34. Qxd5 {[%emt 0:00:06]} 1-0

[Event "ROU-ch Men 2018"]
[Site "Olanesti"]
[Date "2018.05.20"]
[Round "7"]
[White "Neagu, Liviu"]
[Black "Toma, Mihail"]
[Result "1-0"]
[ECO "A00"]
[WhiteElo "2025"]
[BlackElo "1835"]
[Annotator "NA"]
[PlyCount "71"]
[EventDate "2018.??.??"]
[EventType "swiss"]
[EventCountry "ROU"]
[SourceTitle "playchess.com"]
[Source "ChessBase"]
[SourceQuality "1"]
[TimeControl "40/5400+30:1800+30"]

1. b4 {[%emt 0:09:34]} e5 {[%emt 0:00:25]} 2. Bb2 {[%emt 0:00:20]} f6 {[%emt 0:01:11]} 3. b5 {[%emt 0:00:24]} d5 {[%emt 0:00:56]} 4. e3 {[%emt 0:00:41]} Be6 {[%emt 0:01:47]} 5. Nf3 {[%emt 0:02:06]} Bd6 {[%emt 0:00:43]} 6. d4 {[%emt 0:00:32]} e4 {[%emt 0:00:35]} 7. Nfd2 {[%emt 0:00:02]} Ne7 {[%emt 0:00:42]} 8. c4 {[%emt 0:00:20]} c6 {[%emt 0:02:45]} 9. Nc3 {[%emt 0:01:10]} Nd7 {[%emt 0:02:06]} 10. a4 {[%emt 0:03:37]} O-O {[%emt 0:00:36]} 11. Qb3 {[%emt 0:03:26]} Rc8 {[%emt 0:02:28]} 12. c5 {[%emt 0:02:40]} Bb8 {[%emt 0:03:19]} 13. Ncxe4 {[%emt 0:04:25]} Kh8 {[%emt 0:00:49]} 14. Be2 {[%emt 0:08:34]} Bg8 {[%emt 0:08:56]} 15. Ng3 {[%emt 0:02:58]} f5 {[%emt 0:00:38]} 16. O-O {[%emt 0:01:58]} f4 {[%emt 0:02:18]} 17. exf4 {[%emt 0:00:28]} Bxf4 {[%emt 0:00:28]} 18. Nf3 {[%emt 0:00:08]} Nf6 {[%emt 0:01:07]} 19. Bc1 {[%emt 0:04:24]} Ne4 {[%emt 0:00:40]} 20. Bxf4 {[%emt 0:01:26]} Rxf4 {[%emt 0:00:17]} 21. Qe3 {[%emt 0:00:26]} Nxg3 {[%emt 0:01:26]} 22. hxg3 {[%emt 0:00:38]} Re4 {[%emt 0:00:12]} 23. Qd2 {[%emt 0:00:27]} Re6 {[%emt 0:03:38]} 24. Bd3 {[%emt 0:02:35]} Rh6 {[%emt 0:00:11]} 25. Rfe1 {[%emt 0:00:53]} Bf7 {[%emt 0:06:23]} 26. Qg5 {[%emt 0:01:59]} Ng6 {[%emt 0:08:50]} 27. Bf5 {[%emt 0:06:50]} Rb8 {[%emt 0:02:59]} 28. Qxd8+ {[%emt 0:02:42]} Rxd8 {[%emt 0:00:12]} 29. Rab1 {[%emt 0:12:13]} Be8 {[%emt 0:01:07]} 30. Rb3 {[%emt 0:07:12]} Kg8 {[%emt 0:01:18]} 31. Ng5 {[%emt 0:02:38]} Nf8 {[%emt 0:06:52]} 32. Re7 {[%emt 0:01:22]} Bd7 {[%emt 0:00:59]} 33. Bxd7 {[%emt 0:01:13]} Rxd7 {[%emt 0:00:23]} 34. Rxd7 {[%emt 0:00:56]} Nxd7 {[%emt 0:02:32]} 35. bxc6 {[%emt 0:00:21]} bxc6 {[%emt 0:01:51]} 36. Rb7 {[%emt 0:01:25]} 1-0

[Event "ROU-ch Men 2018"]
[Site "Olanesti"]
[Date "2018.05.20"]
[Round "7"]
[White "Coca, Cristi-Iulian"]
[Black "Pribeanu, Mihail-Dacian"]
[Result "0-1"]
[ECO "B12"]
[WhiteElo "2003"]
[BlackElo "2119"]
[Annotator "NA"]
[PlyCount "62"]
[EventDate "2018.??.??"]
[EventType "swiss"]
[EventCountry "ROU"]
[SourceTitle "playchess.com"]
[Source "ChessBase"]
[SourceQuality "1"]
[TimeControl "40/5400+30:1800+30"]

1. e4 {[%emt 0:00:00]} c6 {[%emt 0:03:42]} 2. d4 {[%emt 0:00:46]} g6 {[%emt 0:03:28]} 3. f4 {[%emt 0:00:55]} Bg7 {[%emt 0:00:56]} 4. Nf3 {[%emt 0:01:18]} d6 {[%emt 0:02:14]} 5. Nc3 {[%emt 0:01:25]} b5 {[%emt 0:01:19]} 6. Bd3 {[%emt 0:01:47]} Nd7 {[%emt 0:00:50]} 7. Be3 {[%emt 0:02:16]} Ngf6 {[%emt 0:00:51]} 8. h3 {[%emt 0:01:54]} Nb6 {[%emt 0:04:17]} 9. O-O {[%emt 0:01:59]} b4 {[%emt 0:03:19]} 10. Ne2 {[%emt 0:00:52]} a5 {[%emt 0:05:34]} 11. c4 {[%emt 0:14:50]} d5 $16 {[%emt 0:00:22]} 12. cxd5 {[%emt 0:03:48]} cxd5 {[%emt 0:00:56]} 13. e5 {[%emt 0:00:37]} Ne4 {[%emt 0:00:56]} 14. Qc2 {[%emt 0:00:52]} O-O {[%emt 0:05:34]} 15. Ng5 {[%emt 0:18:13]} Nxg5 {[%emt 0:02:26]} 16. fxg5 {[%emt 0:00:05]} Nc4 {[%emt 0:00:17]} 17. Bxc4 {[%emt 0:17:15]} dxc4 {[%emt 0:02:11]} 18. Rf2 {[%emt 0:04:58]} Be6 {[%emt 0:00:46]} 19. Raf1 {[%emt 0:01:38]} Bd5 {[%emt 0:10:12]} 20. Ng3 {[%emt 0:01:21]} a4 {[%emt 0:01:18]} 21. a3 {[%emt 0:13:46]} Qb6 {[%emt 0:08:18]} 22. Ne2 {[%emt 0:05:26]} c3 {[%emt 0:01:51]} 23. bxc3 {[%emt 0:04:27]} bxa3 {[%emt 0:03:12]} 24. Nc1 {[%emt 0:00:32]} Bc4 {[%emt 0:00:44]} 25. Re1 {[%emt 0:00:02]} Rfb8 {[%emt 0:01:05]} 26. Qe4 {[%emt 0:01:22]} Qb1 {[%emt 0:00:36]} 27. Bf4 {[%emt 0:00:35]} Qxe4 {[%emt 0:00:45]} 28. Rxe4 {[%emt 0:00:01]} Rb2 {[%emt 0:01:17]} 29. Re1 {[%emt 0:00:57]} Rxf2 {[%emt 0:00:23]} 30. Kxf2 {[%emt 0:00:02]} a2 {[%emt 0:00:23]} 31. Ne2 {[%emt 0:00:27]} Rb8 0-1

[Event "ROU-ch Men 2018"]
[Site "Olanesti"]
[Date "2018.05.20"]
[Round "7"]
[White "Craciun, Ovidiu"]
[Black "Chima, Radu-Niculin"]
[Result "1/2-1/2"]
[ECO "C11"]
[WhiteElo "1931"]
[BlackElo "2095"]
[Annotator "NA"]
[PlyCount "104"]
[EventDate "2018.??.??"]
[EventType "swiss"]
[EventCountry "ROU"]
[SourceTitle "playchess.com"]
[Source "ChessBase"]
[SourceQuality "1"]
[TimeControl "40/5400+30:1800+30"]

1. e4 {[%emt 0:01:21]} e6 {[%emt 0:00:06]} 2. d4 {[%emt 0:00:24]} d5 {[%emt 0:00:06]} 3. Nc3 {[%emt 0:00:06]} Nf6 {[%emt 0:00:06]} 4. e5 {[%emt 0:00:05]} Nfd7 {[%emt 0:00:06]} 5. f4 {[%emt 0:00:11]} c5 {[%emt 0:00:08]} 6. Nf3 {[%emt 0:00:08]} Nc6 {[%emt 0:00:08]} 7. Be3 {[%emt 0:00:47]} Qb6 {[%emt 0:04:18]} 8. a3 {[%emt 0:00:13]} cxd4 {[%emt 0:01:08]} 9. Nxd4 {[%emt 0:00:12]} Nxd4 {[%emt 0:03:18] C11: French: Classical System: 4 e5 and 4 Bg5 dxe4} 10. Bxd4 {[%emt 0:00:46]} Bc5 {[%emt 0:02:19]} 11. Nb5 {[%emt 0:06:55]} O-O {[%emt 0:04:38]} 12. b4 {[%emt 0:02:56]} Bxd4 {[%emt 0:00:18]} 13. Qxd4 {[%emt 0:12:08]} f6 {[%emt 0:06:03]} (13... a5 14. Rb1 axb4 15. axb4 Qxd4 16. Nxd4 Nb8 17. Kd2 {0-1 (54) Svetushkin,D (2586)-Jianu,V (2563) Mamaia 2015}) 14. Qxb6 {[%emt 0:04:37]} Nxb6 {[%emt 0:01:01]} 15. exf6 {[%emt 0:00:10]} Rxf6 $146 {[%emt 0:00:21]} ({Predecessor:} 15... a6 16. fxg7 Rxf4 17. Nd6 Rb8 18. Bd3 e5 19. O-O-O e4 20. Rhf1 Rxf1 21. Bxf1 Kxg7 22. c4 Be6 23. Re1 Nxc4 {½-½ (23) Luers,C (1892)-Launhardt,W (1954) LSS email 2009}) 16. g3 $1 {[%emt 0:00:12]} Bd7 {[%emt 0:01:41]} 17. Nd4 {[%emt 0:01:16]} e5 {[%emt 0:04:26]} 18. fxe5 {[%emt 0:13:38]} Re8 {[%emt 0:00:33]} 19. O-O-O {[%emt 0:00:08]} Rxe5 {[%emt 0:00:14]} 20. Bd3 {[%emt 0:07:23]} Nc4 {[%emt 0:07:44]} 21. Rde1 {[%emt 0:02:41]} Rxe1+ {[%emt 0:05:58]} 22. Rxe1 {[%emt 0:00:26]} Kf8 {[%emt 0:01:05]} 23. Bxc4 {[%emt 0:05:51]} dxc4 {[%emt 0:00:15]} 24. Kd2 {[%emt 0:00:11]} b5 {[%emt 0:03:11]} 25. Re5 {[%emt 0:03:45]} a6 {[%emt 0:02:40]} 26. Re3 {[%emt 0:07:15]} Bg4 {[%emt 0:04:45]} 27. Kc3 {[%emt 0:00:33]} Rf2 {[%emt 0:04:58]} 28. h4 {[%emt 0:07:56]} Kf7 {[%emt 0:08:44]} 29. Kb2 {[%emt 0:01:54]} Rd2 {[%emt 0:04:39]} 30. Nf3 {[%emt 0:01:14]} Bxf3 {[%emt 0:00:21]} 31. Rxf3+ {[%emt 0:00:08]} Ke6 {[%emt 0:01:21]} 32. Re3+ {[%emt 0:01:15]} Kd6 {[%emt 0:00:30]} 33. Re8 {[%emt 0:07:37]} Rg2 {[%emt 0:04:47]} 34. Ra8 {[%emt 0:00:23]} Rxg3 {[%emt 0:00:15]} 35. Rxa6+ {[%emt 0:00:06]} Kc7 {[%emt 0:00:32]} 36. a4 {[%emt 0:00:19]} bxa4 {[%emt 0:02:41]} 37. Rxa4 {[%emt 0:00:40]} Kb6 {[%emt 0:00:30]} 38. Ra5 {[%emt 0:00:43]} h6 {[%emt 0:08:09]} 39. h5 {[%emt 0:00:27]} Rh3 {[%emt 0:05:44]} 40. Rc5 {[%emt 0:00:00]} Rh4 {[%emt 0:01:43]} 41. Kc3 {[%emt 0:04:56]} Rh2 {[%emt 0:00:36]} 42. Re5 {[%emt 0:09:06]} Rg2 {[%emt 0:03:03]} 43. Kxc4 {[%emt 0:03:20]} Rxc2+ {[%emt 0:00:14]} 44. Kd5 {[%emt 0:00:05]} Rb2 {[%emt 0:01:03]} 45. Ke6 {[%emt 0:00:14]} Rxb4 {[%emt 0:00:27]} 46. Kf7 {[%emt 0:00:14]} Rg4 {[%emt 0:02:41]} 47. Re6+ {[%emt 0:01:03]} Kc7 {[%emt 0:00:16]} 48. Rg6 {[%emt 0:00:10]} Rxg6 {[%emt 0:08:01]} 49. hxg6 {[%emt 0:01:13]} h5 {[%emt 0:00:06]} 50. Kxg7 {[%emt 0:00:05]} h4 $11 {[%emt 0:00:07]} 51. Kf6 {[%emt 0:00:12]} h3 {[%emt 0:00:05]} 52. g7 {[%emt 0:00:17]} h2 {[%emt 0:00:05]} 1/2-1/2

[Event "ROU-ch Men 2018"]
[Site "Olanesti"]
[Date "2018.05.20"]
[Round "7"]
[White "Rauca, Horatiu-Augustin"]
[Black "Pislariu, Stefanel-Vasilica"]
[Result "1-0"]
[ECO "B07"]
[WhiteElo "1897"]
[BlackElo "1863"]
[Annotator "NA"]
[PlyCount "77"]
[EventDate "2018.??.??"]
[EventType "swiss"]
[EventCountry "ROU"]
[SourceTitle "playchess.com"]
[Source "ChessBase"]
[SourceQuality "1"]
[TimeControl "40/5400+30:1800+30"]

1. e4 {[%emt 0:00:00]} d6 {[%emt 0:00:33]} 2. d4 {[%emt 0:00:13]} Nf6 {[%emt 0:01:13]} 3. Nc3 {[%emt 0:00:22]} g6 {[%emt 0:00:13]} 4. Be3 {[%emt 0:01:09]} Bg7 {[%emt 0:01:06]} 5. f3 {[%emt 0:00:09]} O-O {[%emt 0:00:38]} 6. Qd2 {[%emt 0:00:06]} e5 {[%emt 0:01:44]} 7. Nge2 {[%emt 0:03:46]} Nc6 {[%emt 0:01:53]} 8. O-O-O {[%emt 0:07:44]} a6 {[%emt 0:01:23]} 9. Bh6 {[%emt 0:12:47]} b5 {[%emt 0:09:48]} 10. h4 {[%emt 0:01:59]} Qe7 {[%emt 0:15:57]} 11. h5 {[%emt 0:06:45]} Nxh5 {[%emt 0:08:06]} 12. Nd5 {[%emt 0:00:30]} Qd8 {[%emt 0:16:18]} 13. g4 {[%emt 0:06:15]} Nf4 {[%emt 0:02:40]} 14. Bxg7 {[%emt 0:01:16]} Kxg7 {[%emt 0:01:40]} 15. Nexf4 {[%emt 0:00:11]} exf4 {[%emt 0:01:13]} 16. Qxf4 {[%emt 0:00:43]} h5 {[%emt 0:04:04]} 17. gxh5 {[%emt 0:02:36]} g5 {[%emt 0:00:11]} 18. h6+ {[%emt 0:03:52]} Kg6 {[%emt 0:01:47]} 19. Qh2 {[%emt 0:01:34]} Kh7 {[%emt 0:00:43]} 20. e5 {[%emt 0:06:21]} f5 {[%emt 0:05:29]} 21. exf6 {[%emt 0:11:30]} Bf5 {[%emt 0:00:28]} 22. Qh5 {[%emt 0:03:57]} Rxf6 {[%emt 0:02:46]} 23. Nxf6+ {[%emt 0:05:00]} Qxf6 {[%emt 0:00:04]} 24. Bd3 {[%emt 0:04:17]} Nxd4 {[%emt 0:01:22]} 25. Kb1 {[%emt 0:05:32]} Bxd3 {[%emt 0:03:08]} 26. Rxd3 {[%emt 0:00:26]} Ne2 {[%emt 0:00:36]} 27. Qg4 {[%emt 0:01:27]} Re8 {[%emt 0:00:29]} 28. a3 {[%emt 0:02:44]} Nf4 {[%emt 0:03:29]} 29. Rdd1 {[%emt 0:00:49]} Ng6 {[%emt 0:07:17]} 30. Rh5 {[%emt 0:02:33]} Re5 {[%emt 0:02:42]} 31. Rg1 {[%emt 0:00:56]} Qe6 {[%emt 0:02:51]} 32. Qxe6 {[%emt 0:00:22]} Rxe6 {[%emt 0:00:04]} 33. Rgxg5 {[%emt 0:00:20]} c5 {[%emt 0:00:30]} 34. Rf5 {[%emt 0:00:19]} Re5 {[%emt 0:01:28]} 35. Rf7+ {[%emt 0:00:41]} Kg8 {[%emt 0:01:28]} 36. Rg7+ {[%emt 0:00:21]} Kh8 37. Rxe5 Nxe5 {[%emt 0:00:52]} 38. f4 {[%emt 0:00:49]} Nf3 {[%emt 0:00:14]} 39. Rd7 1-0